Workbook

Sheet INICIO (hidden)
F12: MARCO MUESTRAL | I12: El marco de muestreo de la encuesta se construye en base al Directorio General de Empresas y Establecimientos (DIRGE) 2021 que el INE actualiza de manera permanente y la base a los datos de la Encuesta Permanente de Hogares Continua (EPHC) 2021/2022.
F15: COBERTURA GEOGRÁFICA | I15: La encuesta abarca los territorios de Asunción y el Departamento Central.
F18: POBLACIÓN OBJETIVO | I18: Micro y pequeñas empresas formales, que cuentan con Registro Único del Contribuyente (RUC) de la Dirección Nacional de Ingresos Tributarios (DNIT), anteriormente Secretaría Técnica de Tributación (SET). También incluye a empresas informales, las cuales son dirigidas por Patrones o Empleadores, o Trabajadores por cuenta propia y que no cuentan con RUC. Estas empresas se dedican a diversas actividades como la fabricación de ropa o zapatos, la producción de productos metálicos, la venta de ropa o artículos del hogar, la prestación de servicios de transporte, servicios profesionales, construcción, talleres de autos y motos.
F24: TAMAÑO DE LA MUESTRA | I24: Se seleccionaron 1.000 empresas de tamaño micro y pequeñas en Asunción y el Departamento Central, de las cuales 600 corresponden a empresas formales y 400 empresas informales.
F27: LEVANTAMIENTO DE LA INFORMACIÓN | I27: FORMALES: Entrevista telefónica asistida por un ordenador (CATI). INFORMALES: Entrevista personal cara a cara, asistida por un ordenador (CAPI).
F30: DEFINICIONES
F31: Las definiciones detalladas a continuación corresponden a lo considerado para este estudio, teniendo en cuenta además, lo definido dentro de la Ley N° 4.457/2012 y el Decreto N° 3.698/2020, que establecen los criterios para clasificar el tamaño de las empresas.
F34: EMPRESAS FORMALES | I34: Está conformada por micro y pequeñas empresas con Registro Único del Contribuyente (RUC), de Asunción y el Departamento Central que realizan actividades económicas en los sectores de fabricación de productos; reventa de bienes y el de provisión de servicios, y se encuentran activas, según el Directorio General de Empresas y Establecimientos (DIRGE 2022), generado por el INE.
F38: EMPRESAS INFORMALES | I38: Está conformada por micro y pequeñas empresas sin Registro Único del Contribuyente (RUC), de Asunción y el Departamento Central, dirigidas por Patrones o Empleadores, o Trabajadores por cuenta propia, y que realizan las actividades económicas en los sectores de fabricación de productos; reventa de bienes y el sector de provisión de servicios, y se encuentran en la base de datos de la Encuesta Permanente de Hogares Continua (EPHC 2021/2022), que realiza el INE.
F42: MICROEMPRESA | I42: Incluyen empresas con tramo de facturación anual de hasta guaraníes 646.045.491, o con 1 a 10 personas ocupadas.
F44: PEQUEÑA EMPRESA | I44: Incluyen empresas con tramo de facturación anual de más de guaraníes 646.045.491 hasta guaraníes 3.230.277.453, o con personal ocupado de 11 a 30 personas.
F46: SECTOR ECONÓMICO DE ACTIVIDAD | I46: Para la realización de esta encuesta se considera la agrupación de actividades en tres grandes grupos y según las necesidades establecidadas por el Banco Mundial, diferenciando los clasificadores según tipo de empresa formal e informal; para las empresas formales se utiliza las actividades de la Clasificación Nacional de Actividades Económicas del Paraguay (CNAEP), la cual fue elaborada en base a la CIIU Rev.4. Por otro lado para las empresas informales se utiliza el clasificador que emplea la EPHC, Clasificación de las Actividades Económicas del Paraguay (CAEP). De esta manera los sectores de actividades quedan agrupadas de la siguiente forma: Fabricación de productos: Fabricación de ropas o zapatos, Fabricación de productos metálicos. Reventa de Bienes: Venta de ropa o articulos del hogar. Provisión de servicios: Servicios de transporte, Servicios profesionales, Construcción, Taller de autos y motos.
F56: Precisiones sobre los gráficos
F57: La suma de los porcentajes puede no coincidir con el 100 % debido al redondeo de las cifras.

Sheet CARACTERÍSTICA_EMPRESA (hidden)

Sheet CARACTERÍSTICA_PROPIETARIO

Sheet FUNDACIÓN (hidden)

Sheet TECNOLOGÍA (hidden)

Sheet VENTAS_PRÁCTICAS (hidden)

Sheet OBSTÁCULOS_EXPECTATIVAS (hidden)

Sheet PROGRAMA_GUBERNAMENTAL (hidden)

Sheet PERCEPCIÓN (hidden)

Sheet TABLA DINAMICA (hidden)
A3: Etiquetas de fila | B3: Cuenta de SECTOR_BM | D3: Etiquetas de fila | E3: Cuenta de B1B | G3: Etiquetas de fila | H3: Cuenta de TIPO | J3: Etiquetas de fila | K3: Cuenta de Antigüedad
A4: Fabricación de productos | B4: 0.359 | D4: No | E4: 0.606 | G4: Formales | H4: 600 | J4: De 0 a 4 años | K4: 0.288
A5: Provisión de servicios | B5: 0.448 | D5: Sí | E5: 0.394 | G5: Informales | H5: 400 | J5: De 5 a 14 años | K5: 0.379
A6: Reventa de bienes | B6: 0.193 | D6: Total general | E6: 1 | G6: Total general | H6: 1000 | J6: 15 años y más | K6: 0.333
A7: Total general | B7: 1 | J7: Total general | K7: 1
A10: Etiquetas de fila | B10: Cuenta de B1A | D10: Etiquetas de fila | E10: Cuenta de B1 | G10: Etiquetas de fila | H10: Cuenta de B1A
A11: No | B11: 0.066 | D11: Sí | E11: 1 | G11: No | H11: 0.066
A12: Sí | B12: 0.934 | D12: Total general | E12: 1 | G12: Sí | H12: 0.934
A13: Total general | B13: 1 | G13: Total general | H13: 1
A16: Etiquetas de fila | B16: Cuenta de B8 | D16: Etiquetas de fila | E16: Cuenta de B6 | G16: Etiquetas de fila | H16: Cuenta de B3 | J16: Etiquetas de fila | K16: Cuenta de B2
A17: No sabe | B17: 0.001070663812 | D17: 1960 | E17: 1 | G17: Ninguno | H17: 0.004 | J17: Menos de 20 años | K17: 0.003
A18: Otras fuentes | B18: 0.004282655246 | D18: 1964 | E18: 1 | G18: Educación superior incompleta | H18: 0.101 | J18: Entre 20 y 29 años | K18: 0.084
A19: Financieras | B19: 0.01070663812 | D19: 1968 | E19: 1 | G19: Educación primaria completa | H19: 0.113 | J19: Entre 30 y 39 años | K19: 0.235
A20: Prestamistas privados | B20: 0.01713062099 | D20: 1970 | E20: 3 | G20: Educación secundaria incompleta | H20: 0.115 | J20: Entre 40 y 49 años | K20: 0.244
A21: Bancos | B21: 0.03961456103 | D21: 1971 | E21: 1 | G21: Educación primaria incompleta | H21: 0.137 | J21: 50 o más años | K21: 0.434
A22: Cooperativas | B22: 0.1070663812 | D22: 1973 | E22: 3 | G22: Educación superior completa | H22: 0.215 | J22: Total general | K22: 1
A23: Amigos o familiares | B23: 0.1723768737 | D23: 1975 | E23: 3 | G23: Educación secundaria completa | H23: 0.315
A24: Recursos propios | B24: 0.647751606 | D24: 1976 | E24: 3 | G24: Total general | H24: 1
A25: Total general | B25: 1 | D25: 1977 | E25: 1
D26: 1978 | E26: 7
D27: 1979 | E27: 1
D28: 1980 | E28: 13
D29: 1981 | E29: 5
A30: Etiquetas de fila | B30: Cuenta de B9 | D30: 1982 | E30: 5 | G30: Etiquetas de fila | H30: Cuenta de B10 | J30: Etiquetas de fila | K30: Cuenta de B11
A31: Otro | B31: 0.003211991435 | D31: 1983 | E31: 13 | G31: No | H31: 0.835 | J31: No | K31: 0.4775 | M31: Cobertura médica | N31: Sí | O31: =+IF(ISERROR((+GETPIVOTDATA("B11",$J$30,"B11","Sí"))),"No aplica",(+GETPIVOTDATA("B11",$J$30,"B11","Sí"))) -> 0.5225 | P31: =+GETPIVOTDATA("B12",$G$36,"B12","No") -> 0.405
A32: Empleador o patrón | B32: 0.008565310493 | D32: 1984 | E32: 4 | G32: Sí | H32: 0.165 | J32: Sí | K32: 0.5225 | N32: No | O32: =+IF(ISERROR((+GETPIVOTDATA("B11",$J$30,"B11","No"))),"No aplica",(+GETPIVOTDATA("B11",$K$30,"B11","No"))) -> 0.4775 | P32: =+GETPIVOTDATA("B12",$G$36,"B12","Sí") -> 0.5925
A33: Empleado/ Obrero Público | B33: 0.06102783726 | D33: 1985 | E33: 8 | G33: Total general | H33: 1 | J33: Total general | K33: 1 | M33: Derecho a jubilación | N33: Sí | O33: =+GETPIVOTDATA("B12",$G$36,"B12","Sí") -> 0.5925
A34: No trabajaba | B34: 0.1059957173 | D34: 1986 | E34: 2 | N34: No | O34: =+GETPIVOTDATA("B12",$G$36,"B12","No") -> 0.405
A35: Trabajador por cuenta propia | B35: 0.2569593148 | D35: 1987 | E35: 4
A36: Empleado/ Obrero Privado | B36: 0.5642398287 | D36: 1988 | E36: 6 | G36: Etiquetas de fila | H36: Cuenta de B12
A37: Total general | B37: 1 | D37: 1989 | E37: 5 | G37: No sabe | H37: 0.0025 | J37: No sabe | K37: =+IF(ISERROR((+GETPIVOTDATA("B12",$G$36,"B12","No sabe"))),"No aplica",(+GETPIVOTDATA("B12",$G$36,"B12","No sabe"))) -> 0.0025
D38: 1990 | E38: 18 | G38: No | H38: 0.405 | J38: No | K38: =+IF(ISERROR((+GETPIVOTDATA("B12",$G$36,"B12","No"))),"No aplica",(+GETPIVOTDATA("B12",$G$36,"B12","No"))) -> 0.405
D39: 1991 | E39: 6 | G39: Sí | H39: 0.5925 | J39: Sí | K39: =+IF(ISERROR((+GETPIVOTDATA("B12",$G$36,"B12","Sí"))),"No aplica",(+GETPIVOTDATA("B12",$G$36,"B12","Sí"))) -> 0.5925
D40: 1992 | E40: 15 | G40: Total general | H40: 1 | J40: Total general | K40: =SUM(K37:K39) -> 1
D41: 1993 | E41: 11
D42: 1994 | E42: 4 | J42: C1 | K42: No
D43: 1995 | E43: 6 | G43: Etiquetas de fila | H43: Cuenta de C1
D44: 1996 | E44: 3 | G44: No | H44: 0.475 | J44: Etiquetas de fila | K44: Cuenta de C2_1
D45: 1997 | E45: 14 | G45: Sí | H45: 0.525 | J45: No sé como montar la estructura de ventas | K45: 115
D46: 1998 | E46: 25 | G46: Total general | H46: 1 | J46: #¡NULO! | K46: 360
D47: 1999 | E47: 11 | J47: Total general | K47: 475 | M47: No sabe | N47: =+GETPIVOTDATA("C2_9",$J$83,"C2_9","No sabe")/GETPIVOTDATA("C2_9",$J$83) -> 0.004210526316
D48: 2000 | E48: 22 | M48: Otro (falta de tiempo, de capital, infraestructura, etc.) | N48: =+GETPIVOTDATA("C2_5",$J$76,"C2_5","Otro (especificar)")/GETPIVOTDATA("C2_5",$J$76) -> 0.02526315789
D49: 2001 | E49: 9 | M49: Limitaciones en el acceso/ conectividad a internet | N49: =+GETPIVOTDATA("C2_4",$J$68,"C2_4","Limitaciones en el acceso/conectividad a internet")/GETPIVOTDATA("C2_4",$J$68) -> 0.1010526316
D50: 2002 | E50: 17 | M50: Creo que no es seguro | N50: =+GETPIVOTDATA("C2_3",$J$60,"C2_3","Creo que no es seguro")/GETPIVOTDATA("C2_3",$J$60) -> 0.1031578947
D51: 2003 | E51: 27 | J51: C1 | K51: No | M51: No sé como montar la estructura de ventas | N51: =+GETPIVOTDATA("C2_1",$J$44,"C2_1","No sé como montar la estructura de ventas")/GETPIVOTDATA("C2_1",$J$44) -> 0.2421052632
D52: 2004 | E52: 12 | M52: No hay necesidad | N52: =+GETPIVOTDATA("C2_2",$J$53,"C2_2","No hay necesidad")/GETPIVOTDATA("C2_2",$J$53) -> 0.7221052632
D53: 2005 | E53: 15 | J53: Etiquetas de fila | K53: Cuenta de C2_2
D54: 2006 | E54: 5 | J54: No hay necesidad | K54: 343
D55: 2007 | E55: 23 | J55: #¡NULO! | K55: 132
D56: 2008 | E56: 34 | J56: Total general | K56: 475
D57: 2009 | E57: 21
D58: 2010 | E58: 33 | J58: C1 | K58: No
D59: 2011 | E59: 25
D60: 2012 | E60: 37 | J60: Etiquetas de fila | K60: Cuenta de C2_3
D61: 2013 | E61: 57 | J61: Creo que no es seguro | K61: 49
D62: 2014 | E62: 27 | J62: #¡NULO! | K62: 426
D63: 2015 | E63: 59 | J63: Total general | K63: 475
D64: 2016 | E64: 45
D65: 2017 | E65: 41
D66: 2018 | E66: 79 | J66: C1 | K66: No
D67: 2019 | E67: 70
D68: 2020 | E68: 63 | J68: Etiquetas de fila | K68: Cuenta de C2_4
D69: 2021 | E69: 34 | J69: Limitaciones en el acceso/conectividad a internet | K69: 48
D70: 2022 | E70: 42 | J70: #¡NULO! | K70: 427
D71: Total general | E71: 1000 | J71: Total general | K71: 475
J74: C1 | K74: No
D75: Etiquetas de fila | E75: Cuenta de C3_22
D76: No | E76: 0.668 | J76: Etiquetas de fila | K76: Cuenta de C2_5
D77: Sí | E77: 0.332 | J77: Otro (especificar) | K77: 12
D78: Total general | E78: 1 | J78: #¡NULO! | K78: 463
J79: Total general | K79: 475
J81: C1 | K81: No
J83: Etiquetas de fila | K83: Cuenta de C2_9
J84: No sabe | K84: 2
A85: Etiquetas de fila | B85: Cuenta de D1 | D85: Etiquetas de fila | E85: Cuenta de D22 | G85: Etiquetas de fila | H85: Cuenta de D6 | J85: #¡NULO! | K85: 473
A86: Sí | B86: 0.203 | D86: Sí | E86: 0.765 | G86: No sabe | H86: 0.02166666667 | J86: Total general | K86: 475
A87: No | B87: 0.797 | D87: No | E87: 0.234 | G87: Los precios de mi empresa son menores | H87: 0.1516666667
A88: Total general | B88: 1 | D88: No sabe | E88: 0.001 | G88: Los precios de mi empresa son mayores | H88: 0.1783333333
D89: Total general | E89: 1 | G89: Los precios de mi empresa son similares | H89: 0.6483333333
G90: Total general | H90: 1
A93: Etiquetas de fila | B93: Cuenta de D7 | D93: Etiquetas de fila | E93: Cuenta de D8 | G93: Etiquetas de fila | H93: Cuenta de E4
A94: Ninguno | B94: 0.03 | D94: Sí | E94: 0.71 | G94: Aumentaría | H94: 0.348
A95: Menos de la mitad (Menor al 50%) | B95: 0.09 | D95: No | E95: 0.173 | G95: Disminuiría | H95: 0.046
A96: La mitad (50%) | B96: 0.115 | D96: Algunas veces | E96: 0.103 | G96: No sabe | H96: 0.009
A97: La mayoría (Mayor al 50%) | B97: 0.3 | D97: No compra materia prima ni mercaderías | E97: 0.011 | G97: Permanecería igual | H97: 0.597
A98: Todos (100%) | B98: 0.465 | D98: No sabe | E98: 0.003 | G98: Total general | H98: 1
A99: Total general | B99: 1 | D99: Total general | E99: 1
A103: Etiquetas de fila | B103: Cuenta de E5 | D103: Etiquetas de fila | E103: Cuenta de E1
A104: Aumentaría | B104: 0.661 | D104: La legislación laboral | E104: 0.01 | G104: Otro | H104: =+GETPIVOTDATA("E1",$D$103,"E1","Otro (especifique)") -> 0.052 | I104: =+H104 -> 0.052
A105: Permanecería igual | B105: 0.256 | D105: No sabe | E105: 0.012 | G105: La legislación laboral | H105: =+GETPIVOTDATA("E1",$D$103,"E1","La legislación laboral") -> 0.01 | I105: 0.01
A106: Disminuiría | B106: 0.077 | D106: Transporte de materiales o personas | E106: 0.013 | G106: No sabe | H106: =+GETPIVOTDATA("E1",$D$103,"E1","No sabe") -> 0.012 | I106: 0.012
A107: No sabe | B107: 0.006 | D107: Obtener licencias y permisos comerciales | E107: 0.024 | G107: Transporte de materiales o personas | H107: =+GETPIVOTDATA("E1",$D$103,"E1","Transporte de materiales o personas") -> 0.013 | I107: 0.013
A108: Total general | B108: 1 | D108: Los impuestos | E108: 0.041 | G108: Obtener licencias y permisos comerciales | H108: =+GETPIVOTDATA("E1",$D$103,"E1","Obtener licencias y permisos comerciales") -> 0.024 | I108: 0.024
D109: Otro (especifique) | E109: 0.052 | G109: Los impuestos | H109: =+GETPIVOTDATA("E1",$D$103,"E1","Los impuestos") -> 0.041 | I109: 0.041
D110: La corrupción | E110: 0.074 | G110: La corrupción | H110: =+GETPIVOTDATA("E1",$D$103,"E1","La corrupción") -> 0.074 | I110: 0.074
D111: La falta de mano de obra calificada | E111: 0.074 | G111: La falta de mano de obra calificada | H111: =+GETPIVOTDATA("E1",$D$103,"E1","La falta de mano de obra calificada") -> 0.074 | I111: 0.074
D112: Lo pequeño del mercado (no poder llegar a nuevos clientes) | E112: 0.081 | G112: Lo pequeño del mercado (no poder llegar a nuevos clientes) | H112: =+GETPIVOTDATA("E1",$D$103,"E1","Lo pequeño del mercado (no poder llegar a nuevos clientes)") -> 0.081 | I112: 0.081
D113: Delitos, robos y violencia | E113: 0.09 | G113: Delitos, robos y violencia | H113: =+GETPIVOTDATA("E1",$D$103,"E1","Delitos, robos y violencia") -> 0.09 | I113: 0.09
D114: El acceso o abastecimiento de materias primas, insumos o combustibles | E114: 0.108 | G114: El acceso a materias primas, insumos o combustibles | H114: =+GETPIVOTDATA("E1",$D$103,"E1","El acceso o abastecimiento de materias primas, insumos o combustibles") -> 0.108 | I114: 0.108
D115: Prácticas de los competidores | E115: 0.172 | G115: Prácticas de los competidores | H115: =+GETPIVOTDATA("E1",$D$103,"E1","Prácticas de los competidores") -> 0.172 | I115: 0.172
D116: Acceso a crédito | E116: 0.249 | G116: Acceso a crédito | H116: =+GETPIVOTDATA("E1",$D$103,"E1","Acceso a crédito") -> 0.249 | I116: 0.249
D117: Total general | E117: 1
H119: =+GETPIVOTDATA("E1",$D$103) -> 1 | I119: =+H119 -> 1
A121: Etiquetas de fila | B121: Cuenta de E6A | D121: Etiquetas de fila | E121: Cuenta de E6C
A122: No | B122: 249 | D122: No | E122: 486
A123: No Aplica | B123: 4 | D123: No Aplica | E123: 6
A124: No sabe | B124: 11 | D124: No sabe | E124: 15 | H124: Mejor acceso a financiamiento y préstamos | I124: =+GETPIVOTDATA("E6A",$A$121,"E6A","Sí")/GETPIVOTDATA("E6A",$A$121) -> 0.736
A125: Sí | B125: 736 | D125: Sí | E125: 493 | H125: Mejor acceso a materias primas, servicios de infraestructura y servicios gubernamentales | I125: =+GETPIVOTDATA("E6B",$A$131,"E6B","Sí")/GETPIVOTDATA("E6B",$A$131) -> 0.666
A126: Total general | B126: 1000 | D126: Total general | E126: 1000 | H126: Menores pagos informales | I126: =+GETPIVOTDATA("E6C",$D$121,"E6C","Sí")/GETPIVOTDATA("E6C",$D$121) -> 0.493
H127: Mejor acceso a potenciales clientes | I127: =+GETPIVOTDATA("E6D",$D$131,"E6D","Sí")/GETPIVOTDATA("E6D",$D$131) -> 0.769
A131: Etiquetas de fila | B131: Cuenta de E6B | D131: Etiquetas de fila | E131: Cuenta de E6D | G131: Etiquetas de fila | H131: Cuenta de E9
A132: No | B132: 321 | D132: No | E132: 223 | G132: Permanecería igual | H132: 0.53 | J132: =+G132 -> Permanecería igual | K132: =+GETPIVOTDATA("E9",$G$131,"E9","Permanecería igual") -> 0.53
A133: No Aplica | B133: 6 | D133: No Aplica | E133: 4 | G133: Aumentaría | H133: 0.445 | J133: =+G133 -> Aumentaría | K133: =+GETPIVOTDATA("E9",$G$131,"E9","Aumentaría") -> 0.445
A134: No sabe | B134: 7 | D134: No sabe | E134: 4 | G134: Disminuiría | H134: 0.02 | J134: =+G134 -> Disminuiría | K134: =+GETPIVOTDATA("E9",$G$131,"E9","Disminuiría") -> 0.02
A135: Sí | B135: 666 | D135: Sí | E135: 769 | G135: No sabe | H135: 0.005 | J135: =+G135 -> No sabe | K135: =+GETPIVOTDATA("E9",$G$131,"E9","No sabe") -> 0.005
A136: Total general | B136: 1000 | D136: Total general | E136: 1000 | G136: Total general | H136: 1
A141: Etiquetas de fila | B141: Cuenta de E7A | D141: Etiquetas de fila | E141: Cuenta de E7D | G141: Centro de Apoyo a Emprendedores | H141: =+GETPIVOTDATA("E7B",$A$147,"E7B","Sí")/GETPIVOTDATA("E7B",$A$147) -> 0.264
A142: No | B142: 879 | D142: No | E142: 868 | G142: Fondo de Garantía del Paraguay (FOGAPY) | H142: =+GETPIVOTDATA("E7C",$A$153,"E7C","Sí")/GETPIVOTDATA("E7C",$A$153) -> 0.19
A143: Sí | B143: 121 | D143: Sí | E143: 132 | G143: RESIMPLE | H143: =+GETPIVOTDATA("E7D",$D$141,"E7D","Sí")/GETPIVOTDATA("E7D",$D$141) -> 0.132
A144: Total general | B144: 1000 | D144: Total general | E144: 1000 | G144: Empresas por Acción Simplificada | H144: =+GETPIVOTDATA("E7A",$A$141,"E7A","Sí")/GETPIVOTDATA("E7A",$A$141) -> 0.121
G145: Exporta Fácil | H145: =+GETPIVOTDATA("E7E",$D$147,"E7E","Sí")/GETPIVOTDATA("E7E",$D$147) -> 0.1016666667
A147: Etiquetas de fila | B147: Cuenta de E7B | D147: Etiquetas de fila | E147: Cuenta de E7E | G147: Etiquetas de fila | H147: Cuenta de E8
A148: No | B148: 736 | D148: No | E148: 539 | G148: No | H148: 0.199
A149: Sí | B149: 264 | D149: Sí | E149: 61 | G149: No sabe | H149: 0.009
A150: Total general | B150: 1000 | D150: Total general | E150: 600 | G150: Sí | H150: 0.792
G151: Total general | H151: 1
J152: Rentabilidad | K152: =+GETPIVOTDATA("B7B",$D$159,"B7B","Sí")/GETPIVOTDATA("B7B",$D$159) -> 0.8940042827
A153: Etiquetas de fila | B153: Cuenta de E7C | D153: Etiquetas de fila | E153: Cuenta de B7A | G153: Etiquetas de fila | H153: Cuenta de B7D | J153: Ubicación o autonomía | K153: =+GETPIVOTDATA("B7A",$D$153,"B7A","Sí")/GETPIVOTDATA("B7A",$D$153) -> 0.8340471092
A154: No | B154: 810 | D154: No | E154: 155 | G154: No | H154: 673 | J154: Fuente adicional de ingresos | K154: =+GETPIVOTDATA("B7C",$D$165,"B7C","Sí")/GETPIVOTDATA("B7C",$D$165) -> 0.6852248394
A155: Sí | B155: 190 | D155: Sí | E155: 779 | G155: No sabe | H155: 1 | J155: Dificultad para conseguir empleo | K155: =+GETPIVOTDATA("B7D",$G$153,"B7D","Sí")/GETPIVOTDATA("B7D",$G$153) -> 0.278372591
A156: Total general | B156: 1000 | D156: Total general | E156: 934 | G156: Sí | H156: 260 | J156: Pérdida de empleo | K156: =+GETPIVOTDATA("B7E",$G$160,"B7E","Sí")/GETPIVOTDATA("B7E",$G$160) -> 0.1445396146
G157: Total general | H157: 934 | J157: Otros | K157: =+GETPIVOTDATA("B7F",$G$167,"B7F","Sí")/GETPIVOTDATA("B7F",$G$167) -> 0.02569593148
D159: Etiquetas de fila | E159: Cuenta de B7B
D160: No | E160: 99 | G160: Etiquetas de fila | H160: Cuenta de B7E
D161: Sí | E161: 835 | G161: No | H161: 797
D162: Total general | E162: 934 | G162: No sabe | H162: 2
G163: Sí | H163: 135
G164: Total general | H164: 934
D165: Etiquetas de fila | E165: Cuenta de B7C
D166: No | E166: 293
D167: No sabe | E167: 1 | G167: Etiquetas de fila | H167: Cuenta de B7F
D168: Sí | E168: 640 | G168: No | H168: 910
D169: Total general | E169: 934 | G169: Sí | H169: 24
G170: Total general | H170: 934
